fUSD/lending_fUSD_20240104
["ID","MTS","AMOUNT","RATE_DAILY","PERIOD"]
[310191243,1704394247110,-632.75,0.00033423,2]
[310191244,1704394247121,-500.0,0.00033424,2]
[310191245,1704394247131,-500.0,0.00033424,2]
[310191246,1704394247143,-2883.69,0.00033424,2]
[310191247,1704394247154,-500.0,0.00033424,2]
[310191248,1704394247164,-500.0,0.00033424,2]
[310191249,1704394247175,-500.0,0.00033424,2]
[310191250,1704394247185,-500.0,0.00033424,2]
[310191251,1704394247198,-500.0,0.00033424,2]
[310191252,1704394247210,-500.0,0.00033424,2]
[310191253,1704394247222,-500.0,0.00033424,2]
[310191254,1704394247232,-500.0,0.00033424,2]
[310191255,1704394247242,-500.0,0.00033424,2]
[310191256,1704394247253,-500.0,0.00033424,2]
[310191257,1704394247263,-500.0,0.00033424,2]
[310191258,1704394247273,-427.22,0.00033424,2]
[310191259,1704394247283,-500.0,0.00033424,2]
[310191260,1704394247294,-615.24423814,0.00033424,2]
[310191261,1704394247305,-500.0,0.00033424,2]
[310191262,1704394247316,-500.0,0.00033424,2]
[310191263,1704394247327,-346.25,0.00033424,2]
[310191264,1704394247338,-500.0,0.00033424,2]
[310191265,1704394247349,-500.0,0.00033424,2]
[310191266,1704394247360,-215.42,0.00033424,2]
[310191267,1704394247371,-501.54825601,0.00033424,2]
[310191268,1704394247382,-284.19,0.00033424,2]
[310191269,1704394247391,-500.0,0.00033424,2]
[310191270,1704394247402,-500.0,0.00033424,2]
[310191271,1704394247412,-500.0,0.00033424,2]
[310191272,1704394247423,-500.0,0.00033424,2]
[310191273,1704394247434,-500.0,0.00033424,2]
[310191274,1704394247444,-500.0,0.00033424,2]
[310191275,1704394247454,-500.0,0.00033424,2]
[310191276,1704394247463,-500.0,0.00033424,2]
[310191277,1704394247473,-500.0,0.00033424,2]
[310191278,1704394247483,-500.0,0.00033424,2]
[310191279,1704394247493,-500.0,0.00033424,2]
[310191280,1704394247503,-469.02069556,0.00033424,2]
[310191281,1704394247514,-500.0,0.00033424,2]
[310191282,1704394247524,-500.0,0.00033424,2]
[310191283,1704394247535,-500.0,0.00033424,2]
[310191284,1704394247546,-500.0,0.00033424,2]
[310191285,1704394247556,-500.0,0.00033424,2]
[310191286,1704394247566,-500.0,0.00033424,2]
[310191287,1704394247577,-500.0,0.00033424,2]
[310191288,1704394247589,-500.0,0.00033424,2]
[310191289,1704394247599,-500.0,0.00033424,2]
[310191290,1704394247609,-500.0,0.00033424,2]
[310191291,1704394247620,-500.0,0.00033424,2]
[310191292,1704394247630,-602.42841269,0.00033424,2]
[310191293,1704394247642,-500.0,0.00033424,2]
[310191294,1704394247959,-500.0,0.00033424,2]
[310191295,1704394247969,-500.0,0.00033424,2]
[310191296,1704394247979,-500.0,0.00033424,2]
[310191297,1704394247989,-500.0,0.00033424,2]
[310191298,1704394247998,-500.0,0.00033424,2]
[310191299,1704394248007,-500.0,0.00033424,2]
[310191300,1704394248016,-500.0,0.00033424,2]
[310191301,1704394248025,-500.0,0.00033424,2]
[310191302,1704394248034,-500.0,0.00033424,2]
[310191303,1704394248043,-500.0,0.00033424,2]
[310191304,1704394248053,-219.36268674,0.00033424,2]
[310191305,1704394248062,-500.0,0.00033424,2]
[310191306,1704394248071,-500.0,0.00033424,2]
[310191307,1704394248080,-500.0,0.00033424,2]
[310191308,1704394248090,-500.0,0.00033424,2]
[310191309,1704394248099,-500.0,0.00033424,2]
[310191310,1704394248108,-500.0,0.00033424,2]
[310191311,1704394248118,-500.0,0.00033424,2]
[310191312,1704394248127,-500.0,0.00033424,2]
[310191313,1704394248137,-500.0,0.00033424,2]
[310191314,1704394248147,-500.0,0.00033424,2]
[310191315,1704394248156,-500.0,0.00033424,2]
[310191316,1704394248166,-500.0,0.00033424,2]
[310191317,1704394248174,-500.0,0.00033424,2]
[310191318,1704394248184,-500.0,0.00033424,2]
[310191319,1704394248192,-553.16,0.00033424,2]
[310191320,1704394248201,-683.51,0.00033424,2]
[310191321,1704394248210,-1276.81,0.00033424,2]
[310191322,1704394248220,-500.0,0.00033424,2]
[310191323,1704394248229,-592.61,0.00033424,2]
[310191324,1704394248239,-3368.91,0.00033424,2]
[310191325,1704394248249,-585.79,0.00033424,2]
[310191326,1704394248258,-941.49,0.00033424,2]
[310191327,1704394248268,-500.0,0.00033424,2]
[310191328,1704394248278,-859.04,0.00033424,2]
[310191329,1704394248287,-500.0,0.00033424,2]
[310191330,1704394248298,-534.67,0.00033424,2]
[310191331,1704394248309,-500.0,0.00033424,2]
[310191332,1704394248318,-500.0,0.00033424,2]
[310191333,1704394248328,-1504.54,0.00033424,2]
[310191334,1704394248339,-608.08,0.00033424,2]
[310191335,1704394248348,-500.0,0.00033424,2]
[310191336,1704394248358,-213.348916,0.00033424,2]
[310191337,1704394248367,-500.0,0.00033424,2]
[310191338,1704394248377,-2606.33,0.00033424,2]
[310191339,1704394248387,-500.0,0.00033424,2]
[310191340,1704394248396,-500.0,0.00033424,2]
[310191341,1704394248406,-744.64,0.00033424,2]
[310191342,1704394248419,-619.09,0.00033424,2]
[310191343,1704394248430,-238.86,0.00033424,2]
[310191344,1704394248440,-692.38,0.00033424,2]
[310191345,1704394248450,-500.0,0.00033424,2]
[310191346,1704394248459,-1329.64,0.00033424,2]
[310191347,1704394248470,-500.0,0.00033424,2]
[310191348,1704394248480,-6713.39,0.00033424,2]
[310191349,1704394248490,-1127.76,0.00033424,2]
[310191350,1704394248501,-1342.21,0.00033424,2]
[310191351,1704394248511,-500.0,0.00033424,2]
[310191352,1704394248521,-500.0,0.00033424,2]
[310191353,1704394248532,-500.0,0.00033424,2]
[310191354,1704394248542,-3639.97,0.00033424,2]
[310191355,1704394248552,-500.0,0.00033424,2]
[310191356,1704394248564,-1277.34,0.00033424,2]
[310191357,1704394248574,-500.0,0.00033424,2]
[310191358,1704394248584,-614.58,0.00033424,2]
[310191359,1704394248593,-500.0,0.00033424,2]
[310191360,1704394248603,-212.94,0.00033424,2]
[310191361,1704394248613,-500.0,0.00033424,2]
[310191362,1704394248623,-500.0,0.00033424,2]
[310191363,1704394248632,-500.0,0.00033424,2]
[310191364,1704394248642,-500.0,0.00033424,2]
[310191365,1704394248652,-500.0,0.00033424,2]
[310191366,1704394248662,-500.0,0.00033424,2]
[310191367,1704394248673,-500.0,0.00033424,2]
[310191368,1704394248682,-500.0,0.00033424,2]
[310191369,1704394248692,-500.0,0.00033424,2]
[310191370,1704394248701,-500.0,0.00033424,2]
[310191371,1704394248712,-539.88,0.00033424,2]
[310191372,1704394248733,-500.0,0.00033424,2]
[310191373,1704394248743,-579.35,0.00033424,2]
[310191374,1704394248755,-500.0,0.00033424,2]
[310191375,1704394248766,-500.0,0.00033424,2]
[310191376,1704394248776,-1094.69,0.00033424,2]
[310191377,1704394248786,-500.0,0.00033424,2]
[310191378,1704394248796,-576.27,0.00033424,2]
[310191379,1704394248807,-500.0,0.00033424,2]
[310191380,1704394248817,-948.0,0.00033424,2]
[310191381,1704394248827,-2470.51,0.00033424,2]
[310191382,1704394248837,-670.87,0.00033424,2]
[310191383,1704394248846,-1259.22,0.00033424,2]
[310191384,1704394248856,-502.06944115,0.00033424,2]
[310191385,1704394248865,-500.0,0.00033424,2]
[310191386,1704394248874,-500.0,0.00033424,2]
[310191387,1704394248884,-500.0,0.00033424,2]
[310191388,1704394248893,-3900.4,0.00033424,2]
[310191389,1704394248902,-500.0,0.00033424,2]
[310191390,1704394248913,-1085.42,0.00033424,2]
[310191391,1704394248923,-750.62,0.00033424,2]
[310191392,1704394248935,-500.0,0.00033424,2]
[310191393,1704394248944,-500.0,0.00033424,2]
[310191394,1704394248954,-500.0,0.00033424,2]
[310191395,1704394248965,-500.0,0.00033424,2]
[310191396,1704394248974,-2384.14,0.00033424,2]
[310191397,1704394248983,-575.93,0.00033424,2]
[310191398,1704394248993,-500.0,0.00033424,2]
[310191399,1704394249002,-5701.42,0.00033424,2]
[310191400,1704394249011,-1764.44,0.00033424,2]
[310191401,1704394249020,-1094.56,0.00033424,2]
[310191402,1704394249029,-500.0,0.00033424,2]
[310191403,1704394249038,-500.0,0.00033424,2]
[310191404,1704394249050,-2683.51,0.00033424,2]
[310191405,1704394249062,-500.0,0.00033424,2]
[310191406,1704394249072,-869.15,0.00033424,2]
[310191407,1704394249082,-500.0,0.00033424,2]
[310191408,1704394249092,-500.0,0.00033424,2]
[310191409,1704394249101,-500.0,0.00033424,2]
[310191410,1704394249111,-500.0,0.00033424,2]
[310191411,1704394249120,-500.0,0.00033424,2]
[310191412,1704394249130,-722.14,0.00033424,2]
[310191413,1704394249142,-1122.9,0.00033424,2]
[310191414,1704394249152,-568.75,0.00033424,2]
[310191415,1704394249161,-500.0,0.00033424,2]
[310191416,1704394249170,-500.0,0.00033424,2]
[310191417,1704394249180,-500.0,0.00033424,2]
[310191418,1704394249189,-500.0,0.00033424,2]
[310191419,1704394249198,-1084.54,0.00033424,2]
[310191420,1704394249208,-500.0,0.00033424,2]
[310191421,1704394249217,-689.44,0.00033424,2]
[310191422,1704394249228,-588.36,0.00033424,2]
[310191423,1704394249238,-500.0,0.00033424,2]
[310191424,1704394249248,-707.71,0.00033424,2]
[310191425,1704394249258,-5982.14,0.00033424,2]
[310191426,1704394249267,-968.72,0.00033424,2]
[310191427,1704394249278,-500.0,0.00033424,2]
[310191428,1704394249288,-1602.81,0.00033424,2]
[310191429,1704394249298,-500.0,0.00033424,2]
[310191430,1704394249307,-500.0,0.00033424,2]
[310191431,1704394249316,-500.0,0.00033424,2]
[310191432,1704394249326,-500.0,0.00033424,2]
[310191433,1704394249337,-500.0,0.00033424,2]
[310191434,1704394249347,-500.0,0.00033424,2]
[310191435,1704394249357,-500.0,0.00033424,2]
[310191436,1704394249366,-500.0,0.00033424,2]
[310191437,1704394249377,-500.0,0.00033424,2]
[310191438,1704394249387,-500.0,0.00033424,2]
[310191439,1704394249397,-503.87,0.00033424,2]
[310191440,1704394249407,-589.97,0.00033424,2]
[310191441,1704394249417,-500.0,0.00033424,2]
[310191442,1704394249427,-1696.2,0.00033424,2]
[310191443,1704394249437,-500.0,0.00033424,2]
[310191444,1704394249446,-237.36,0.00033424,2]
[310191445,1704394249456,-646.84,0.00033424,2]
[310191446,1704394249466,-500.0,0.00033424,2]
[310191447,1704394249479,-500.0,0.00033424,2]
[310191448,1704394249489,-500.0,0.00033424,2]
[310191449,1704394249499,-995.26,0.00033424,2]
[310191450,1704394249509,-1386.2,0.00033424,2]
[310191451,1704394249519,-938.74,0.00033424,2]
[310191452,1704394249529,-698.47,0.00033424,2]
[310191453,1704394249539,-500.0,0.00033424,2]
[310191454,1704394249549,-651.18,0.00033424,2]
[310191455,1704394249558,-2319.81,0.00033424,2]
[310191456,1704394249568,-500.0,0.00033424,2]
[310191457,1704394249578,-1984.69,0.00033424,2]
[310191458,1704394249588,-849.34,0.00033424,2]
[310191459,1704394249598,-1305.76,0.00033424,2]
[310191460,1704394249608,-921.9,0.00033424,2]
[310191461,1704394249619,-500.0,0.00033424,2]
[310191462,1704394249630,-500.0,0.00033424,2]
[310191463,1704394249639,-1253.51,0.00033424,2]
[310191464,1704394249649,-2547.63,0.00033424,2]
[310191465,1704394249658,-500.0,0.00033424,2]
[310191466,1704394249667,-2795.5,0.00033424,2]
[310191467,1704394249677,-705.23,0.00033424,2]
[310191468,1704394249686,-500.0,0.00033424,2]
[310191469,1704394249695,-1328.32,0.00033424,2]
[310191470,1704394249704,-500.0,0.00033424,2]
[310191471,1704394249714,-253.09038656,0.00033497,5]
[310191472,1704394249723,-171.0,0.00033513,2]
[310191473,1704394249732,-171.0,0.00033513,2]
[310191474,1704394249742,-500.0,0.00033597,2]
[310191475,1704394249752,-1594.82,0.00033597,2]
[310191476,1704394249771,-1113.19,0.00033597,2]
[310191477,1704394249782,-570.33,0.00033597,2]
[310191478,1704394249792,-1365.74,0.00033597,2]
[310191479,1704394249803,-583.96,0.00033597,2]
[310191480,1704394249812,-151.69832518,0.00033598,2]
[310191481,1704394249822,-153.18,0.000336,2]
[310191482,1704394249832,-153.18,0.000336,2]
[310191483,1704394249843,-153.18,0.000336,2]
[310191484,1704394249853,-153.18,0.000336,2]
[310191485,1704394249864,-153.18,0.000336,2]
[310191486,1704394249875,-750.59,0.0003363,2]
[310191487,1704394249886,-408.5,0.00033669,2]
[310191488,1704394249897,-3998.7,0.00033684,2]
[310191489,1704394249906,-302.04851186,0.00033696,4]
[310191490,1704394249917,-675.12146526,0.00033696,4]
[310191491,1704394249926,-200.19348135,0.00033696,4]
[310191492,1704394249936,-961.86905458,0.00033696,4]
[310191493,1704394249946,-443.83749097,0.00033697,4]
[310191494,1704394249955,-166.59384665,0.00033697,4]
[310191495,1704394249965,-500.0,0.00033697,2]
[310191496,1704394249975,-500.0,0.00033697,2]
[310191497,1704394249985,-500.0,0.00033697,2]
[310191498,1704394249994,-2862.35,0.00033697,2]
[310191499,1704394250004,-528.65,0.00033697,2]
[310191500,1704394250014,-1151.68,0.00033697,2]
[310191501,1704394250023,-500.0,0.00033697,2]
[310191502,1704394250033,-500.0,0.00033697,2]
[310191503,1704394250043,-500.0,0.00033697,2]
[310191504,1704394250053,-1419.44,0.00033697,2]
[310191505,1704394250063,-1294.05,0.00033697,2]
[310191506,1704394250073,-700.29,0.00033697,2]
[310191507,1704394250083,-500.0,0.00033697,2]
[310191508,1704394250093,-1173.03,0.00033697,2]
[310191509,1704394250103,-1137.46,0.00033697,2]
[310191510,1704394250113,-993.05,0.00033697,2]
[310191511,1704394250122,-606.94,0.00033697,2]
[310191512,1704394250132,-500.0,0.00033697,2]
[310191513,1704394250141,-500.0,0.00033697,2]
[310191514,1704394250151,-617.81,0.00033697,2]
[310191515,1704394250160,-500.0,0.00033697,2]
[310191516,1704394250169,-516.7,0.00033697,2]
[310191517,1704394250179,-632.75,0.00033697,2]
[310191518,1704394250189,-260.41823532,0.00033698,2]
[310191519,1704394250198,-500.0,0.00033698,2]
[310191520,1704394250208,-2883.69,0.00033698,2]
[310191521,1704394250217,-500.0,0.00033698,2]
[310191522,1704394250227,-500.0,0.00033698,2]
[310191523,1704394250236,-500.0,0.00033698,2]
[310191524,1704394250246,-500.0,0.00033698,2]
[310191525,1704394250255,-500.0,0.00033698,2]
[310191526,1704394250265,-500.0,0.00033698,2]
[310191527,1704394250274,-500.0,0.00033698,2]
[310191528,1704394250283,-500.0,0.00033698,2]
[310191529,1704394250292,-500.0,0.00033698,2]
[310191530,1704394250396,-500.0,0.00033698,2]
[310191531,1704394250405,-500.0,0.00033698,2]
[310191532,1704394250415,-500.0,0.00033698,2]
[310191533,1704394250424,-500.0,0.00033698,2]
[310191534,1704394250434,-500.0,0.00033698,2]
[310191535,1704394250443,-500.0,0.00033698,2]
[310191536,1704394250452,-597.1705588,0.00033698,2]
[310191537,1704394250461,-500.0,0.00033698,2]
[310191538,1704394250471,-500.0,0.00033698,2]
[310191539,1704394250480,-500.0,0.00033698,2]
[310191540,1704394250490,-500.0,0.00033698,2]
[310191541,1704394250499,-500.0,0.00033698,2]
[310191542,1704394250509,-500.0,0.00033698,2]
[310191543,1704394250518,-500.0,0.00033698,2]
[310191544,1704394250527,-500.0,0.00033698,2]
[310191545,1704394250536,-500.0,0.00033698,2]
[310191546,1704394250546,-500.0,0.00033698,2]
[310191547,1704394250556,-637.63940989,0.00033698,2]
[310191548,1704394250566,-500.0,0.00033698,2]
[310191549,1704394250576,-500.0,0.00033698,2]
[310191550,1704394250585,-500.0,0.00033698,2]
[310191551,1704394250595,-500.0,0.00033698,2]
[310191552,1704394250604,-500.0,0.00033698,2]
[310191553,1704394250613,-500.0,0.00033698,2]
[310191554,1704394250623,-500.0,0.00033698,2]
[310191555,1704394250633,-536.28322357,0.00033698,2]
[310191556,1704394250642,-500.0,0.00033698,2]
[310191557,1704394250653,-500.0,0.00033698,2]
[310191558,1704394250662,-500.0,0.00033698,2]
[310191559,1704394250671,-500.0,0.00033698,2]
[310191560,1704394250681,-500.0,0.00033698,2]
[310191561,1704394250691,-500.0,0.00033698,2]
[310191562,1704394250700,-500.0,0.00033698,2]
[310191563,1704394250711,-500.0,0.00033698,2]
[310191564,1704394250723,-320.91283916,0.00033698,2]
[310191565,1704394250733,-531.75319611,0.00033698,2]
[310191566,1704394250743,-500.0,0.00033698,2]
[310191567,1704394250754,-284.52517481,0.00033698,2]
[310191568,1704394250764,-500.0,0.00033698,2]
[310191569,1704394250773,-500.0,0.00033698,2]
[310191570,1704394250783,-500.0,0.00033698,2]
[310191571,1704394250794,-500.0,0.00033698,2]
[310191572,1704394250803,-500.0,0.00033698,2]
[310191573,1704394250813,-500.0,0.00033698,2]
[310191574,1704394250823,-500.0,0.00033698,2]
[310191575,1704394250831,-500.0,0.00033698,2]
[310191576,1704394250841,-500.0,0.00033698,2]
[310191577,1704394250850,-500.0,0.00033698,2]
[310191578,1704394250860,-500.0,0.00033698,2]
[310191579,1704394250869,-500.0,0.00033698,2]
[310191580,1704394250878,-553.16,0.00033698,2]
[310191581,1704394250888,-683.51,0.00033698,2]
[310191582,1704394250897,-1276.81,0.00033698,2]
[310191583,1704394250907,-500.0,0.00033698,2]
[310191584,1704394250916,-592.61,0.00033698,2]
[310191585,1704394250926,-3368.91,0.00033698,2]
[310191586,1704394250935,-585.79,0.00033698,2]
[310191587,1704394250945,-941.49,0.00033698,2]
[310191588,1704394250954,-500.0,0.00033698,2]
[310191589,1704394250963,-859.04,0.00033698,2]
[310191590,1704394250972,-460.18176867,0.00033698,2]
[310191591,1704394250981,-534.67,0.00033698,2]
[310191592,1704394250990,-500.0,0.00033698,2]
[310191593,1704394250999,-500.0,0.00033698,2]
[310191594,1704394251009,-1504.54,0.00033698,2]
[310191595,1704394251018,-500.0,0.00033698,2]
[310191596,1704394251027,-500.0,0.00033698,2]
[310191597,1704394251037,-2606.33,0.00033698,2]
[310191598,1704394251046,-500.0,0.00033698,2]
[310191599,1704394251055,-500.0,0.00033698,2]
[310191600,1704394251064,-744.64,0.00033698,2]
[310191601,1704394251073,-619.09,0.00033698,2]
[310191602,1704394251082,-692.38,0.00033698,2]
[310191603,1704394251091,-500.0,0.00033698,2]
[310191604,1704394251101,-1329.64,0.00033698,2]
[310191605,1704394251110,-500.0,0.00033698,2]
[310191606,1704394251119,-6713.39,0.00033698,2]
[310191607,1704394251129,-1127.76,0.00033698,2]
[310191608,1704394251138,-1342.21,0.00033698,2]
[310191609,1704394251149,-205.19218145,0.00033698,2]
[310191610,1704394251158,-500.0,0.00033698,2]
[310191611,1704394251167,-208.88234774,0.00033698,2]
[310191612,1704394251176,-3639.97,0.00033698,2]
[310191613,1704394251185,-500.0,0.00033698,2]
[310191614,1704394251194,-1277.34,0.00033698,2]
[310191615,1704394251204,-500.0,0.00033698,2]
[310191616,1704394251213,-614.58,0.00033698,2]
[310191617,1704394251223,-500.0,0.00033698,2]
[310191618,1704394251232,-500.0,0.00033698,2]
[310191619,1704394251242,-500.0,0.00033698,2]
[310191620,1704394251251,-500.0,0.00033698,2]
[310191621,1704394251261,-500.0,0.00033698,2]
[310191622,1704394251271,-500.0,0.00033698,2]
[310191623,1704394251280,-500.0,0.00033698,2]
[310191624,1704394251290,-500.0,0.00033698,2]
[310191625,1704394251301,-500.0,0.00033698,2]
[310191626,1704394251311,-500.0,0.00033698,2]
[310191627,1704394251321,-500.0,0.00033698,2]
[310191628,1704394251330,-539.88,0.00033698,2]
[310191629,1704394251341,-500.0,0.00033698,2]
[310191630,1704394251351,-579.35,0.00033698,2]
[310191631,1704394251360,-500.0,0.00033698,2]
[310191632,1704394251370,-500.0,0.00033698,2]
[310191633,1704394251380,-1094.69,0.00033698,2]
[310191634,1704394251390,-500.0,0.00033698,2]
[310191635,1704394251399,-500.0,0.00033698,2]
[310191636,1704394251409,-948.0,0.00033698,2]
[310191637,1704394251419,-2470.51,0.00033698,2]
[310191638,1704394251429,-670.87,0.00033698,2]
[310191639,1704394251438,-1259.22,0.00033698,2]
[310191640,1704394251448,-500.0,0.00033698,2]
[310191641,1704394251458,-500.0,0.00033698,2]
[310191642,1704394251467,-500.0,0.00033698,2]
[310191643,1704394251477,-3900.4,0.00033698,2]
[310191644,1704394251487,-500.0,0.00033698,2]
[310191645,1704394251497,-1085.42,0.00033698,2]
[310191646,1704394251507,-750.62,0.00033698,2]
[310191647,1704394251518,-500.0,0.00033698,2]
[310191648,1704394251527,-500.0,0.00033698,2]
[310191649,1704394251537,-500.0,0.00033698,2]
[310191650,1704394251547,-2384.14,0.00033698,2]
[310191651,1704394251556,-575.93,0.00033698,2]
[310191652,1704394251566,-500.0,0.00033698,2]
[310191653,1704394251576,-5701.42,0.00033698,2]
[310191654,1704394251588,-1764.44,0.00033698,2]
[310191655,1704394251601,-1094.56,0.00033698,2]
[310191656,1704394251612,-500.0,0.00033698,2]
[310191657,1704394251622,-500.0,0.00033698,2]
[310191658,1704394251633,-2683.51,0.00033698,2]
[310191659,1704394251643,-869.15,0.00033698,2]
[310191660,1704394251653,-500.0,0.00033698,2]
[310191661,1704394251663,-500.0,0.00033698,2]
[310191662,1704394251673,-500.0,0.00033698,2]
[310191663,1704394251683,-500.0,0.00033698,2]
[310191664,1704394251692,-500.0,0.00033698,2]
[310191665,1704394251703,-500.0,0.00033698,2]
[310191666,1704394251713,-722.14,0.00033698,2]
[310191667,1704394251723,-1122.9,0.00033698,2]
[310191668,1704394251733,-568.75,0.00033698,2]
[310191669,1704394251745,-500.0,0.00033698,2]
[310191670,1704394251757,-500.0,0.00033698,2]
[310191671,1704394251768,-500.0,0.00033698,2]
[310191672,1704394251778,-500.0,0.00033698,2]
[310191673,1704394251788,-1084.54,0.00033698,2]
[310191674,1704394251798,-500.0,0.00033698,2]
[310191675,1704394251807,-689.44,0.00033698,2]
[310191676,1704394251817,-588.36,0.00033698,2]
[310191677,1704394251826,-500.0,0.00033698,2]
[310191678,1704394251836,-707.71,0.00033698,2]
[310191679,1704394251846,-968.72,0.00033698,2]
[310191680,1704394251855,-5982.14,0.00033698,2]
[310191681,1704394251864,-500.0,0.00033698,2]
[310191682,1704394251874,-1602.81,0.00033698,2]
[310191683,1704394251883,-500.0,0.00033698,2]
[310191684,1704394251893,-500.0,0.00033698,2]
[310191685,1704394251903,-500.0,0.00033698,2]
[310191686,1704394251912,-500.0,0.00033698,2]
[310191687,1704394251922,-500.0,0.00033698,2]
[310191688,1704394251931,-500.0,0.00033698,2]
[310191689,1704394251941,-500.0,0.00033698,2]
[310191690,1704394251950,-500.0,0.00033698,2]
[310191691,1704394251960,-500.0,0.00033698,2]
[310191692,1704394251970,-503.87,0.00033698,2]
[310191693,1704394251979,-589.97,0.00033698,2]
[310191694,1704394251988,-500.0,0.00033698,2]
[310191695,1704394251997,-1696.2,0.00033698,2]
[310191696,1704394252006,-500.0,0.00033698,2]
[310191697,1704394252016,-646.84,0.00033698,2]
[310191698,1704394252026,-500.0,0.00033698,2]
[310191699,1704394252035,-500.0,0.00033698,2]
[310191700,1704394252044,-603.16107802,0.00033698,2]
[310191701,1704394252054,-995.26,0.00033698,2]
[310191702,1704394252064,-1386.2,0.00033698,2]
[310191703,1704394252073,-938.74,0.00033698,2]
[310191704,1704394252082,-698.47,0.00033698,2]
[310191705,1704394252093,-500.0,0.00033698,2]
[310191706,1704394252103,-651.18,0.00033698,2]
[310191707,1704394252113,-2319.81,0.00033698,2]
[310191708,1704394252123,-500.0,0.00033698,2]
[310191709,1704394252132,-1984.69,0.00033698,2]
[310191710,1704394252141,-849.34,0.00033698,2]
[310191711,1704394252151,-1305.76,0.00033698,2]
[310191712,1704394252160,-921.9,0.00033698,2]
[310191713,1704394252170,-500.0,0.00033698,2]
[310191714,1704394252179,-500.0,0.00033698,2]
[310191715,1704394252188,-1253.51,0.00033698,2]
[310191716,1704394252199,-2547.63,0.00033698,2]
[310191717,1704394252208,-2795.5,0.00033698,2]
[310191718,1704394252217,-500.0,0.00033698,2]
[310191719,1704394252227,-705.23,0.00033698,2]
[310191720,1704394252237,-500.0,0.00033698,2]
[310191721,1704394252246,-1328.32,0.00033698,2]
[310191722,1704394252255,-500.0,0.00033698,2]
[310191723,1704394252264,-253.09038646,0.00033806,6]
[310191724,1704394252273,-500.0,0.00033871,2]
[310191725,1704394252282,-1594.82,0.00033871,2]
[310191726,1704394252291,-1113.19,0.00033871,2]
[310191727,1704394252301,-570.33,0.00033871,2]
[310191728,1704394252310,-1365.74,0.00033871,2]
[310191729,1704394252319,-583.96,0.00033871,2]
[310191730,1704394252329,-500.0,0.00033971,2]
[310191731,1704394252339,-500.0,0.00033971,2]
[310191732,1704394252348,-500.0,0.00033971,2]
[310191733,1704394252357,-2862.35,0.00033971,2]
[310191734,1704394252366,-528.65,0.00033971,2]
[310191735,1704394252375,-1151.68,0.00033971,2]
[310191736,1704394252384,-500.0,0.00033971,2]
[310191737,1704394252393,-500.0,0.00033971,2]
[310191738,1704394252403,-500.0,0.00033971,2]
[310191739,1704394252412,-1419.44,0.00033971,2]
[310191740,1704394252421,-1294.05,0.00033971,2]
[310191741,1704394252431,-700.29,0.00033971,2]
[310191742,1704394252440,-500.0,0.00033971,2]